bitfinex/quotes_SOLUSD_20251019
["timestamp","ask_amount","ask_price","bid_price","bid_amount"]
[1760850981886,0.1,187.38,187.37,26.24740419]
[1760850983003,0.1,187.38,187.37,53.12740419]
[1760850984906,0.1,187.38,187.37,46.44653567]
[1760850985203,0.1,187.38,187.37,53.12740419]
[1760850985706,0.1,187.38,187.37,46.44653567]
[1760850986014,0.1,187.38,187.37,49.78696993]
[1760850986798,0.1,187.38,187.37,22.22696993]
[1760850987399,0.1,187.38,187.37,11.35049472]
[1760850987601,0.1,187.38,187.37,34.23049472]
[1760850990229,0.1,187.38,187.37,45.78696993]
[1760850998311,0.1,187.38,187.37,72.64696993]
[1760850999518,0.1,187.38,187.37,45.78696993]
[1760850999816,0.1,187.38,187.37,72.64696993]
[1760851000334,0.1,187.38,187.37,22.90696993]
[1760851000619,0.1,187.38,187.37,49.76696993]
[1760851001223,0.1,187.38,187.37,22.90696993]
[1760851001412,0.1,187.38,187.37,49.76696993]
[1760851002217,0.1,187.38,187.37,22.90696993]
[1760851002523,0.1,187.38,187.37,49.76696993]
[1760851006520,0.1,187.38,187.37,49.08696993]
[1760851007429,0.1,187.38,187.37,22.22696993]
[1760851007625,0.1,187.38,187.37,49.08696993]
[1760851009118,0.76,187.38,187.37,38.21049472]
[1760851009510,0.76,187.38,187.37,34.23049472]
[1760851009711,0.76,187.38,187.37,30.89006046]
[1760851011636,0.1,187.38,187.37,30.89006046]
[1760851013738,0.1,187.38,187.37,34.23049472]
[1760851014326,0.1,187.38,187.37,34.92049472]
[1760851015440,0.1,187.38,187.37,34.23049472]
[1760851018737,0.1,187.38,187.37,34.92049472]
[1760851018938,0.1,187.38,187.37,34.23049472]
[1760851019723,0.1,187.38,187.37,34.92049472]
[1760851020640,0.1,187.38,187.37,30.89006046]
[1760851020826,0.1,187.38,187.37,34.23049472]
[1760851021545,0.1,187.38,187.37,34.92049472]
[1760851022042,0.1,187.38,187.37,34.23049472]
[1760851022428,0.1,187.4,187.38,10.87647521]
[1760851022623,0.1,187.4,187.39,64.49055587]
[1760851022823,0.1,187.4,187.39,42.30055587]
[1760851023243,0.1,187.4,187.39,44.43965049]
[1760851024255,0.1,187.4,187.39,49.77611454]
[1760851025065,0.05276979,187.43,187.4,14.21690947]
[1760851025346,0.1,187.47,187.43,10.87647521]
[1760851025542,0.1,187.5,187.49,10.87647521]
[1760851025744,0.1,187.5,187.49,41.63027124]
[1760851025928,0.1,187.5,187.49,42.32027124]
[1760851026123,0.1,187.5,187.49,49.79195461]
[1760851026325,0.1,187.54,187.52,33.75647521]
[1760851026544,0.1,187.57,187.56,22.88]
[1760851026745,0.1,187.57,187.56,67.31734373]
[1760851026947,0.66,187.66,187.56,67.31734373]
[1760851026948,0.66,187.66,187.6,22.88]
[1760851027140,0.66,187.66,187.61,27.43302062]
[1760851027339,0.66,187.67,187.61,28.12302062]
[1760851027532,0.66,187.67,187.62,3.59683955]
[1760851027743,0.71,187.66,187.64,22.88]
[1760851027924,0.71,187.65,187.63,0.53296381]
[1760851028258,0.71,187.65,187.62,3.59683955]
[1760851028426,0.71,187.64,187.62,4.12983176]
[1760851028629,0.71,187.63,187.62,3.59683955]
[1760851029143,0.71,187.65,187.62,3.59683955]
[1760851029349,10.87647521,187.7,187.62,3.59683955]
[1760851029350,0.71,187.63,187.62,3.59683955]
[1760851033928,4.05043426,187.63,187.62,3.59683955]
[1760851034131,4.05043426,187.63,187.56,26.22043426]
[1760851034327,0.71,187.62,187.57,26.75356855]
[1760851034550,0.71,187.62,187.58,16.03035079]
[1760851034746,3.34043426,187.64,187.58,16.03035079]
[1760851034948,0.71,187.61,187.58,19.37078505]
[1760851035150,0.71,187.61,187.59,3.34043426]
[1760851035336,0.71,187.61,187.58,16.03035079]
[1760851035537,8.66717387,187.74,187.6,3.34043426]
[1760851035538,10.87647521,187.74,187.6,3.34043426]
[1760851035766,10.87647521,187.74,187.58,16.03035079]
[1760851035767,0.71,187.67,187.62,3.34043426]
[1760851035941,0.71,187.66,187.62,4.03043426]
[1760851036261,0.71,187.66,187.63,3.34043426]
[1760851036437,3.34043426,187.7,187.63,17.55734373]
[1760851036756,0.71,187.69,187.63,17.55734373]
[1760851036961,0.71,187.68,187.64,3.34043426]
[1760851037134,0.71,187.67,187.63,17.55734373]
[1760851037330,0.71,187.67,187.63,3.34043426]
[1760851037560,0.71,187.67,187.64,16.02606907]
[1760851037871,22.88,187.71,187.65,0.69]
[1760851038172,0.71,187.75,187.7,3.34043426]
[1760851038336,0.71,187.74,187.69,0.53279343]
[1760851038662,16.48360513,187.76,187.66,16.02007849]
[1760851038663,3.34043426,187.71,187.66,16.02007849]
[1760851038835,0.71,187.7,187.64,32.23974963]
[1760851039033,0.71,187.74,187.69,3.34043426]
[1760851039233,13.85317087,187.76,187.7,4.56319931]
[1760851039431,0.71,187.75,187.7,4.03043426]
[1760851039634,0.71,187.75,187.71,17.19360513]
[1760851040252,0.71,187.74,187.71,13.85317087]
[1760851040756,0.71,187.73,187.71,13.85317087]
[1760851041158,0.71,187.75,187.71,13.85317087]
[1760851041338,0.71,187.75,187.71,17.19360513]
[1760851041956,13.14317087,187.76,187.71,17.19360513]
[1760851042142,0.71,187.74,187.71,13.85317087]
[1760851042347,0.71,187.73,187.71,13.85317087]
[1760851042549,0.71,187.75,187.71,13.85317087]
[1760851042767,16.48360513,187.76,187.71,13.85317087]
[1760851043063,0.71,187.74,187.71,13.85317087]
[1760851043264,0.71,187.73,187.71,13.85317087]
[1760851043839,16.48360513,187.76,187.71,13.85317087]
[1760851044148,0.71,187.75,187.71,13.85317087]
[1760851044348,0.71,187.74,187.71,13.85317087]
[1760851044550,0.71,187.73,187.71,13.85317087]
[1760851044746,0.71,187.72,187.71,13.85317087]
[1760851045560,4.05043426,187.72,187.64,4.03043426]
[1760851045743,4.05043426,187.71,187.69,13.14317087]
[1760851045944,0.71,187.7,187.64,4.03043426]
[1760851046144,0.71,187.7,187.65,13.14317087]
[1760851046340,0.71,187.69,187.65,13.83317087]
[1760851047640,4.05043426,187.71,187.65,13.83317087]
[1760851047841,0.71,187.7,187.65,13.83317087]
[1760851048243,4.05043426,187.7,187.65,13.83317087]
[1760851048462,0.71,187.69,187.65,13.14317087]
[1760851048764,4.05043426,187.69,187.65,13.14317087]
[1760851049062,0.71,187.68,187.65,13.14317087]
[1760851049259,0.71,187.67,187.65,13.14317087]
[1760851049564,4.05043426,187.69,187.65,13.14317087]
[1760851049764,22.88,187.72,187.65,13.14317087]
[1760851049765,3.34043426,187.67,187.65,13.14317087]
[1760851050069,3.34043426,187.69,187.65,13.14317087]
[1760851050364,4.05043426,187.67,187.65,13.14317087]
[1760851050538,0.71,187.66,187.65,13.14317087]
[1760851050735,3.34043426,187.67,187.65,13.14317087]
[1760851050936,0.71,187.68,187.65,13.14317087]
[1760851051336,3.34043426,187.69,187.65,13.14317087]
[1760851051537,22.88,187.65,187.58,0.69]
[1760851051767,22.88,187.65,187.57,16.03120741]
[1760851051768,3.34043426,187.61,187.57,16.03120741]
[1760851052269,3.95043426,187.61,187.56,0.69]
[1760851052437,3.34043426,187.6,187.56,16.72120741]
[1760851052642,3.34043426,187.6,187.54,0.69]
[1760851052643,3.34043426,187.59,187.54,0.69]
[1760851053162,3.34043426,187.58,187.54,0.69]
[1760851053463,3.34043426,187.57,187.52,16.03549188]
[1760851053663,3.34043426,187.57,187.54,0.69]
[1760851054867,3.34043426,187.58,187.54,0.69]
[1760851055554,3.34043426,187.58,187.55,0.69]
[1760851055869,3.34043426,187.58,187.53,0.69]
[1760851056045,0.61,187.59,187.54,0.69]
[1760851056247,3.34043426,187.58,187.54,0.69]
[1760851056447,3.34043426,187.58,187.55,0.69]
[1760851056945,3.34043426,187.58,187.53,0.69]
[1760851057174,3.34043426,187.58,187.54,0.69]
[1760851057541,3.34043426,187.57,187.54,0.69]
[1760851057957,3.34043426,187.57,187.52,16.03549188]
[1760851058266,3.34043426,187.57,187.48,5.33367277]
[1760851058267,3.34043426,187.55,187.51,0.69]
[1760851058566,3.95043426,187.55,187.5,16.03720631]
[1760851058773,3.95043426,187.54,187.49,0.69]
[1760851058955,3.95043426,187.54,187.5,0.69]
[1760851059371,3.34043426,187.54,187.5,0.69]
[1760851060251,3.34043426,187.56,187.51,0.69]
[1760851060445,3.95043426,187.56,187.49,19.37849793]
[1760851060642,3.95043426,187.56,187.52,0.69]
[1760851061261,3.34043426,187.56,187.52,0.69]
[1760851061974,3.34043426,187.55,187.5,0.69]
[1760851062150,3.34043426,187.54,187.5,16.03720631]
[1760851062350,3.95043426,187.54,187.5,0.69]
[1760851062752,3.34043426,187.53,187.5,0.69]
[1760851063070,3.34043426,187.52,187.48,0.69]
[1760851063274,3.34043426,187.52,187.49,0.69]
[1760851063567,3.95043426,187.51,187.46,0.69]
[1760851063760,3.34043426,187.5,187.47,0.69]
[1760851063968,105.44043426,187.52,187.48,0.69]
[1760851064559,105.44043426,187.52,187.49,0.69]
[1760851066483,105.44043426,187.52,187.47,16.73063627]
[1760851066661,105.44043426,187.52,187.47,16.04063627]
[1760851066975,105.44043426,187.52,187.48,0.69]
[1760851067775,105.44043426,187.52,187.49,0.69]
[1760851067962,106.05043426,187.52,187.47,16.73063627]
[1760851068366,102.1,187.52,187.47,16.04063627]
[1760851068553,102.1,187.52,187.48,0.69]
[1760851068749,102.1,187.52,187.48,4.03043426]
[1760851069173,102.1,187.52,187.49,0.69]
[1760851069366,102.1,187.52,187.5,0.69]
[1760851069661,102.1,187.52,187.51,0.69]
[1760851069959,0.61,187.56,187.51,0.69]
[1760851070153,3.34043426,187.55,187.49,19.37935537]
[1760851070350,0.61,187.56,187.5,0.69]
[1760851070564,3.34043426,187.55,187.5,0.69]
[1760851070756,3.34043426,187.55,187.51,0.69]
[1760851071070,3.34043426,187.54,187.51,0.69]
[1760851072166,3.34043426,187.55,187.51,0.69]
[1760851072474,124.98,187.58,187.48,9.20767834]
[1760851072475,124.98,187.58,187.52,0.69]
[1760851072682,3.34043426,187.57,187.52,0.69]
[1760851072970,3.34043426,187.55,187.53,0.69]
[1760851073182,102.71,187.58,187.5,0.53333333]
[1760851073360,3.34043426,187.55,187.52,0.69]
[1760851073560,3.34043426,187.55,187.53,0.69]
[1760851073756,3.34043426,187.54,187.49,0.69]
[1760851074383,3.34043426,187.53,187.49,0.69]
[1760851075678,0.61,187.56,187.5,0.69]
[1760851076282,3.34043426,187.54,187.5,0.69]
[1760851076578,3.95043426,187.54,187.5,0.69]
[1760851076781,3.34043426,187.54,187.5,0.69]
[1760851076974,3.95043426,187.54,187.5,0.69]
[1760851077173,3.34043426,187.54,187.47,32.088022]
[1760851077370,3.34043426,187.55,187.51,0.69]
[1760851077678,3.95043426,187.55,187.51,0.69]
[1760851079373,3.34043426,187.54,187.49,0.69]
[1760851079563,3.34043426,187.54,187.5,0.69]
[1760851079761,3.95043426,187.55,187.48,8.67433654]
[1760851079959,102.1,187.57,187.51,3.34043426]
[1760851080184,105.44043426,187.57,187.52,0.69]
[1760851080369,102.1,187.57,187.52,0.69]
[1760851080577,102.1,187.57,187.52,4.03043426]
[1760851080880,105.44043426,187.57,187.53,0.69]
[1760851081079,106.05043426,187.57,187.53,0.69]
[1760851081286,3.95043426,187.56,187.51,23.57]
[1760851081587,3.34043426,187.56,187.52,0.69]
[1760851081977,3.34043426,187.56,187.53,0.69]
[1760851082781,105.44043426,187.57,187.53,0.69]
[1760851082967,106.05043426,187.57,187.53,0.69]
[1760851083476,3.34043426,187.56,187.5,8.6735821]
[1760851083790,3.34043426,187.56,187.51,0.69]
[1760851084084,105.44043426,187.57,187.51,4.03043426]
[1760851084270,105.44043426,187.57,187.51,0.69]
[1760851084472,3.34043426,187.56,187.52,0.69]
[1760851084669,106.05043426,187.57,187.53,0.69]
[1760851085085,106.05043426,187.57,187.5,8.6735821]
[1760851085300,106.05043426,187.57,187.52,0.69]
[1760851085871,106.05043426,187.57,187.53,0.69]
[1760851086384,105.44043426,187.57,187.53,0.69]
[1760851086570,106.05043426,187.57,187.53,0.69]
[1760851087379,106.05043426,187.57,187.51,0.69]
[1760851087586,3.34043426,187.55,187.49,0.69]
[1760851087807,3.95043426,187.55,187.49,6.02355697]
[1760851087974,3.34043426,187.55,187.5,0.69]
[1760851088174,3.34043426,187.55,187.51,0.69]
[1760851089000,3.34043426,187.56,187.51,0.69]
[1760851089173,3.95043426,187.56,187.51,0.69]
[1760851089373,3.95043426,187.55,187.51,0.69]
[1760851090204,3.34043426,187.56,187.52,0.69]
[1760851090377,3.95043426,187.56,187.52,0.69]
[1760851090770,102.1,187.57,187.53,0.71]
[1760851092291,3.95043426,187.56,187.51,0.71]
[1760851092495,3.34043426,187.54,187.49,0.71]
[1760851092691,3.34043426,187.54,187.48,31.55431756]
[1760851092692,3.95043426,187.54,187.48,32.08770778]
[1760851092894,3.95043426,187.54,187.49,0.71]
[1760851093076,3.95043426,187.54,187.48,32.08770778]
[1760851093077,3.95043426,187.54,187.5,0.71]
[1760851094115,3.34043426,187.55,187.51,0.7]
[1760851094311,3.95043426,187.55,187.5,0.7]
[1760851096204,3.95043426,187.54,187.5,0.7]
[1760851096497,3.34043426,187.54,187.5,0.7]
[1760851096700,0.61,187.53,187.48,32.25428592]
[1760851096906,3.95043426,187.52,187.48,22.88]
[1760851097378,3.95043426,187.51,187.45,9.37516587]
[1760851097979,3.95043426,187.51,187.46,0.7]
[1760851098181,3.95043426,187.51,187.47,0.7]
[1760851098478,3.34043426,187.51,187.47,0.7]
[1760851098689,0.61,187.53,187.48,0.7]
[1760851098882,0.61,187.53,187.47,3.34043426]
[1760851098883,3.95043426,187.53,187.47,3.34043426]
[1760851099079,3.95043426,187.53,187.49,0.7]
[1760851100084,0.61,187.53,187.49,0.7]
[1760851100288,3.34043426,187.54,187.5,0.7]
[1760851101314,3.34043426,187.52,187.47,5.33412563]
[1760851101609,3.95043426,187.51,187.46,0.7]
[1760851101797,3.95043426,187.51,187.45,3.87390985]
[1760851101798,3.95043426,187.51,187.47,0.7]
[1760851102097,3.34043426,187.51,187.47,0.7]
[1760851103208,102.1,187.55,187.45,3.87390985]
[1760851103209,3.95043426,187.5,187.45,6.03471773]
[1760851103509,3.34043426,187.52,187.46,4.04043426]
[1760851103710,3.34043426,187.52,187.47,0.7]
[1760851103883,102.71,187.54,187.48,4.04043426]
[1760851104084,0.61,187.56,187.49,4.04043426]
[1760851104399,3.34043426,187.55,187.5,0.7]
[1760851104582,3.34043426,187.54,187.5,0.7]
[1760851106097,3.95043426,187.53,187.48,5.33376018]
[1760851106289,125.59,187.58,187.49,0.7]
[1760851106601,3.34043426,187.56,187.5,3.34043426]
[1760851106804,105.44043426,187.57,187.51,4.04043426]
[1760851107100,105.44043426,187.57,187.52,0.7]
[1760851107292,105.44043426,187.57,187.53,0.7]
[1760851108095,105.44043426,187.57,187.51,8.67344079]
[1760851108309,102.71,187.57,187.52,0.7]
[1760851108507,106.05043426,187.57,187.52,0.7]
[1760851109588,0.61,187.56,187.52,0.7]
[1760851109790,3.95043426,187.56,187.52,0.7]
[1760851109995,0.61,187.56,187.52,0.7]
[1760851110187,3.95043426,187.56,187.52,0.7]
[1760851111904,0.61,187.56,187.52,0.7]
[1760851112089,3.34043426,187.54,187.5,0.7]
[1760851113196,3.95043426,187.55,187.5,0.7]
[1760851113396,3.95043426,187.55,187.48,26.75382448]
[1760851113702,102.1,187.57,187.48,26.75382448]
[1760851113703,3.95043426,187.54,187.48,24.11339022]
[1760851113896,0.61,187.54,187.48,0.7]
[1760851114207,3.95043426,187.54,187.48,0.7]
[1760851115118,3.95043426,187.54,187.48,6.03382639]
[1760851115308,0.61,187.54,187.48,6.03382639]
[1760851115516,3.95043426,187.54,187.48,6.03382639]
[1760851116217,3.34043426,187.53,187.48,0.7]
[1760851116416,3.95043426,187.54,187.48,0.7]
[1760851116592,3.95043426,187.54,187.48,6.03388808]
[1760851116793,3.95043426,187.54,187.49,0.7]
[1760851119919,3.34043426,187.54,187.49,0.7]
[1760851120096,3.95043426,187.54,187.49,0.7]
[1760851120609,3.34043426,187.54,187.49,0.7]
[1760851120797,0.61,187.53,187.49,0.7]
[1760851122013,3.34043426,187.54,187.47,8.67458182]
[1760851122323,3.34043426,187.54,187.5,0.7]
[1760851122502,3.95043426,187.54,187.5,0.7]
[1760851122914,3.34043426,187.54,187.47,8.67458182]
[1760851123323,3.34043426,187.54,187.48,0.7]
[1760851124030,102.1,187.57,187.48,4.57382448]
[1760851124205,3.34043426,187.55,187.49,4.00043426]
[1760851124406,3.34043426,187.55,187.5,0.66]
[1760851125356,102.1,187.56,187.51,0.66]
[1760851125495,106.05043426,187.56,187.52,0.66]
[1760851125822,105.44043426,187.56,187.53,0.66]
[1760851126625,106.05043426,187.56,187.51,0.66]
[1760851126835,3.95043426,187.55,187.51,0.66]
[1760851127126,3.95043426,187.55,187.49,26.22043426]
[1760851127127,102.1,187.56,187.52,0.66]
[1760851127327,106.05043426,187.56,187.5,5.33332679]
[1760851127639,106.05043426,187.56,187.51,0.66]
[1760851127806,106.05043426,187.56,187.52,0.66]
[1760851128440,102.1,187.56,187.5,5.33333333]
[1760851128604,102.1,187.56,187.53,0.66]
[1760851128803,102.1,187.56,187.54,0.66]
[1760851129812,102.1,187.56,187.5,5.86666666]
[1760851130018,102.1,187.56,187.51,0.66]
[1760851130417,102.1,187.56,187.51,4.00043426]
[1760851130719,102.1,187.56,187.51,9.33324788]
[1760851130924,102.1,187.56,187.52,4.00043426]
[1760851131108,102.1,187.56,187.51,5.33281362]
[1760851131109,102.1,187.56,187.53,4.00043426]
[1760851131309,102.1,187.56,187.54,0.66]
[1760851132333,102.1,187.56,187.53,5.99281362]
[1760851133224,102.1,187.56,187.54,0.66]
[1760851133926,102.1,187.56,187.53,5.33281362]
[1760851134129,102.1,187.56,187.53,5.99281362]
[1760851134311,102.1,187.56,187.53,5.33281362]
[1760851134509,102.1,187.56,187.54,0.66]
[1760851134733,102.1,187.56,187.55,0.66]
[1760851135236,102.1,187.56,187.55,9.33319265]
[1760851135618,3.95043426,187.62,187.55,12.67362691]
[1760851135812,106.05043426,187.63,187.57,3.34043426]
[1760851136014,106.05043426,187.63,187.57,4.00043426]
[1760851136448,102.1,187.63,187.6,3.34043426]
[1760851136614,0.61,187.65,187.6,4.00043426]
[1760851136815,0.61,187.64,187.6,0.66]
[1760851137124,3.95043426,187.64,187.61,16.02863783]
[1760851138137,0.61,187.63,187.61,16.02863783]
[1760851138527,3.95043426,187.62,187.61,16.02863783]
[1760851138724,0.61,187.62,187.61,16.02863783]
[1760851138926,3.34043426,187.63,187.61,16.02863783]
[1760851139130,3.95043426,187.63,187.61,16.02863783]
[1760851139719,3.34043426,187.64,187.61,16.02863783]
[1760851140141,3.95043426,187.64,187.61,16.02863783]
[1760851140715,3.34043426,187.63,187.61,16.02863783]
[1760851141342,0.61,187.65,187.61,16.02863783]
[1760851141343,3.95043426,187.62,187.61,16.02863783]
[1760851141636,3.95043426,187.62,187.56,16.02863783]
[1760851141812,3.34043426,187.59,187.56,16.02863783]
[1760851142017,3.95043426,187.59,187.56,16.02863783]
[1760851142337,0.61,187.61,187.56,16.02863783]
[1760851142540,3.34043426,187.59,187.56,16.02863783]
[1760851142747,3.34043426,187.6,187.56,16.68863783]
[1760851143041,3.34043426,187.62,187.57,0.66]
[1760851143222,3.34043426,187.62,187.58,0.66]
[1760851143537,3.34043426,187.62,187.59,0.66]
[1760851144232,3.34043426,187.62,187.56,9.20515757]
[1760851144233,3.95043426,187.62,187.57,0.66]
[1760851144437,3.34043426,187.61,187.59,16.03035079]
[1760851144643,3.34043426,187.61,187.57,0.66]
[1760851144943,3.34043426,187.61,187.58,16.03035079]
[1760851145734,3.95043426,187.6,187.55,0.66]
[1760851145942,3.34043426,187.6,187.56,0.66]
[1760851146123,3.34043426,187.6,187.57,16.03035079]
[1760851146325,3.34043426,187.61,187.55,4.00043426]
[1760851146530,3.95043426,187.61,187.55,19.37249838]
[1760851146730,3.95043426,187.61,187.56,0.66]
[1760851146941,0.61,187.62,187.57,0.66]
[1760851147246,3.95043426,187.62,187.58,0.66]
[1760851148040,3.34043426,187.63,187.59,0.68]
[1760851148232,26.22043426,187.64,187.59,0.68]
[1760851148543,3.34043426,187.65,187.6,0.68]
[1760851148750,3.34043426,187.65,187.61,0.68]
[1760851149636,3.34043426,187.64,187.61,0.68]
[1760851150028,3.34043426,187.65,187.61,0.68]
[1760851150228,3.95043426,187.65,187.61,16.70863783]
[1760851150429,3.34043426,187.65,187.61,16.70863783]
[1760851150742,3.34043426,187.65,187.62,0.68]
[1760851150921,105.44043426,187.66,187.62,0.68]
[1760851151548,105.44043426,187.66,187.61,21.35879159]
[1760851151752,3.34043426,187.68,187.63,0.68]
[1760851152058,3.34043426,187.69,187.64,0.68]
[1760851152350,3.95043426,187.69,187.63,16.02692523]
[1760851152534,3.34043426,187.69,187.64,0.68]
[1760851152729,3.34043426,187.69,187.63,16.02692523]
[1760851153057,102.1,187.72,187.64,4.02043426]
[1760851153228,3.34043426,187.7,187.65,0.68]
[1760851153548,3.95043426,187.7,187.65,0.7]
[1760851153754,3.95043426,187.7,187.66,0.7]
[1760851153960,105.44043426,187.72,187.67,0.7]
[1760851154127,102.1,187.72,187.68,0.7]
[1760851154330,24.01964608,187.76,187.69,4.04043426]
[1760851154331,3.34043426,187.75,187.69,4.04043426]
[1760851154640,3.34043426,187.75,187.7,0.7]
[1760851154847,3.95043426,187.75,187.7,0.7]
[1760851155056,3.95043426,187.75,187.71,0.7]
[1760851155239,0.61,187.75,187.71,0.7]
[1760851155630,13.14317087,187.76,187.72,4.04043426]
[1760851155823,13.14317087,187.76,187.73,0.7]
[1760851157052,13.14317087,187.76,187.73,4.04043426]
[1760851157364,13.14317087,187.76,187.74,4.04043426]
[1760851157542,13.14317087,187.76,187.75,0.7]
[1760851157731,13.14317087,187.76,187.75,4.04043426]
[1760851159043,13.14317087,187.76,187.75,0.7]
[1760851159242,13.14317087,187.76,187.72,4.04043426]
[1760851159737,13.14317087,187.76,187.73,0.7]
[1760851160044,13.14317087,187.76,187.72,3.34043426]
[1760851160252,13.14317087,187.76,187.73,0.7]
[1760851160742,13.14317087,187.76,187.72,8.66751215]
[1760851160743,13.14317087,187.76,187.72,3.34043426]
[1760851160930,3.95043426,187.75,187.72,3.34043426]
[1760851161430,13.14317087,187.76,187.73,0.7]
[1760851161630,13.14317087,187.76,187.72,4.04043426]
[1760851161839,17.09360513,187.76,187.72,4.04043426]
[1760851162044,16.48360513,187.76,187.72,4.04043426]
[1760851162548,3.34043426,187.75,187.72,3.34043426]
[1760851162753,3.95043426,187.74,187.72,3.34043426]
[1760851162925,3.95043426,187.74,187.68,9.90144518]
[1760851162926,3.95043426,187.74,187.68,9.36862336]
[1760851163130,3.95043426,187.74,187.69,0.7]
[1760851163346,3.34043426,187.74,187.7,0.7]
[1760851163728,3.34043426,187.73,187.69,16.02093402]
[1760851164049,3.34043426,187.7,187.69,16.02093402]
[1760851164539,13.14317087,187.76,187.69,16.02093402]
[1760851164731,13.14317087,187.76,187.72,10.87647521]
[1760851164939,13.14317087,187.76,187.75,3.34043426]
[1760851165126,13.14317087,187.76,187.75,4.04043426]
[1760851165332,13.14317087,187.76,187.75,25.79338468]
[1760851165739,13.14317087,187.76,187.75,26.32600784]
[1760851166338,13.14317087,187.76,187.75,31.65223953]
[1760851173440,13.14317087,187.76,187.75,54.53223953]
[1760851177243,13.14317087,187.76,187.75,10.87647521]
[1760851177456,13.14317087,187.76,187.75,19.54314116]
[1760851178442,13.14317087,187.76,187.75,10.87647521]
[1760851179764,13.14317087,187.76,187.75,14.21690947]
[1760851180061,13.14317087,187.76,187.75,20.24314116]
[1760851181650,13.14317087,187.76,187.75,19.54314116]
[1760851182045,13.14317087,187.76,187.75,10.87647521]
[1760851182451,13.14317087,187.76,187.75,17.43533006]
[1760851182670,13.14317087,187.76,187.75,20.77576432]
[1760851183373,13.14317087,187.76,187.75,11.40909837]
[1760851184566,13.14317087,187.76,187.75,16.73533006]
[1760851185070,13.14317087,187.76,187.75,10.87647521]
[1760851187772,13.75317087,187.76,187.75,10.87647521]
[1760851188655,13.14317087,187.76,187.75,10.87647521]
[1760851190471,13.75317087,187.76,187.75,10.87647521]
[1760851190672,13.14317087,187.76,187.75,10.87647521]
[1760851191351,13.14317087,187.76,187.73,5.32671362]
[1760851191552,13.75317087,187.76,187.73,5.32671362]
[1760851192074,13.75317087,187.76,187.73,6.04671362]
[1760851192075,13.14317087,187.76,187.73,6.04671362]
[1760851192883,13.14317087,187.76,187.73,5.32671362]
[1760851193067,13.75317087,187.76,187.72,9.2002015]
[1760851193370,0.61,187.75,187.71,9.38776482]
[1760851193877,0.61,187.75,187.7,22.95396987]
[1760851194058,0.61,187.75,187.7,23.67396987]
[1760851194865,0.61,187.75,187.71,3.34043426]
[1760851195054,0.61,187.75,187.71,9.3876911]
[1760851195255,13.14317087,187.76,187.72,0.72]
[1760851195471,13.14317087,187.76,187.72,4.06043426]
[1760851195677,13.14317087,187.76,187.74,3.34043426]
[1760851195869,13.14317087,187.76,187.75,0.72]
[1760851197353,13.14317087,187.76,187.75,4.06043426]
[1760851198377,13.14317087,187.76,187.75,0.72]
[1760851198778,13.14317087,187.76,187.74,9.19951881]
[1760851198978,13.14317087,187.76,187.74,9.91951881]
[1760851199383,13.14317087,187.76,187.74,6.57908455]
[1760851199774,13.14317087,187.76,187.74,5.85908455]
[1760851199967,13.14317087,187.76,187.75,9.38666595]
[1760851200674,13.14317087,187.76,187.75,20.26314116]
[1760851200881,13.14317087,187.76,187.75,34.11420939]
[1760851202772,1e-08,187.76,187.75,34.11420939]
[1760851203077,0.1378504,187.81,187.79,33.75647521]
[1760851203284,0.1378504,187.81,187.8,14.74939083]
[1760851203589,0.1378504,187.81,187.8,15.46939083]
[1760851203757,0.1378504,187.81,187.8,44.58357783]
[1760851203958,0.1378504,187.81,187.8,49.90839146]
[1760851204761,0.1378504,187.81,187.8,22.92839146]
[1760851205178,0.1378504,187.81,187.8,49.90839146]
[1760851205882,0.1378504,187.81,187.8,22.92839146]
[1760851206188,0.1378504,187.81,187.8,49.90839146]
[1760851206364,0.1378504,187.81,187.8,22.92839146]
[1760851206572,0.1378504,187.81,187.8,49.88839146]
[1760851206766,0.1378504,187.81,187.8,22.92839146]